[Event "Betsys MČR v online bleskovém šachu 2021"]
[Site "Chess.com"]
[Date "2021.04.17"]
[Round "12"]
[White "FrantisekP"]
[Black "DiscoSTU666"]
[Result "0-1"]
[WhiteElo "1639"]
[BlackElo "1870"]
[TimeControl "180+1"]
[EndTime "11:01:45 PDT"]
[Termination "Uživatel DiscoSTU666 zvítězil po vzdání soupeře"]

1. d4 {[%clk 0:03:00.9]} 1... Nf6 {[%clk 0:02:58.2]} 2. Bf4 {[%clk 0:03:00.4]}
2... d6 {[%clk 0:02:57.2]} 3. e3 {[%clk 0:02:58.5]} 3... g6 {[%clk 0:02:56.3]}
4. Nd2 {[%clk 0:02:51.6]} 4... Bg7 {[%clk 0:02:55.9]} 5. c3 {[%clk 0:02:51.3]}
5... O-O {[%clk 0:02:54.8]} 6. Bg5 {[%clk 0:02:51.2]} 6... h6 {[%clk 0:02:53.3]}
7. Bh4 {[%clk 0:02:51]} 7... Nbd7 {[%clk 0:02:51.9]} 8. Be2 {[%clk 0:02:49.8]}
8... e5 {[%clk 0:02:50.4]} 9. dxe5 {[%clk 0:02:44]} 9... Nxe5 {[%clk 0:02:47.2]}
10. Ne4 {[%clk 0:02:36.1]} 10... g5 {[%clk 0:02:28.8]} 11. Nxf6+ {[%clk
0:02:22.5]} 11... Qxf6 {[%clk 0:02:27.5]} 12. Bg3 {[%clk 0:02:23.4]} 12... Be6
{[%clk 0:02:23]} 13. Bh5 {[%clk 0:02:18.1]} 13... Rfd8 {[%clk 0:02:11.6]} 14.
Qc2 {[%clk 0:02:11.4]} 14... a5 {[%clk 0:02:05.7]} 15. h4 {[%clk 0:02:04.9]}
15... g4 {[%clk 0:02:03.7]} 16. f3 {[%clk 0:01:45]} 16... a4 {[%clk 0:02:01.8]}
17. fxg4 {[%clk 0:01:29.1]} 17... Nxg4 {[%clk 0:01:58.9]} 18. Bxg4 {[%clk
0:01:15.4]} 18... Bxg4 {[%clk 0:01:57.9]} 19. Ne2 {[%clk 0:01:02.1]} 19... a3
{[%clk 0:01:47.9]} 20. Rf1 {[%clk 0:00:55.2]} 20... Qe6 {[%clk 0:01:41.5]} 21.
e4 {[%clk 0:00:34.7]} 21... axb2 {[%clk 0:01:38.6]} 22. Qxb2 {[%clk 0:00:34.2]}
22... Qxe4 {[%clk 0:01:37.3]} 23. Rf4 {[%clk 0:00:23.9]} 23... Qxe2+ {[%clk
0:01:26.5]} 24. Qxe2 {[%clk 0:00:20.2]} 24... Bxe2 {[%clk 0:01:26.4]} 25. Kxe2
{[%clk 0:00:21]} 25... Bxc3 {[%clk 0:01:25.9]} 26. Raf1 {[%clk 0:00:18.3]} 26...
Rxa2+ {[%clk 0:01:26.2]} 27. Kd3 {[%clk 0:00:18.1]} 27... Be5 {[%clk 0:01:19.4]}
28. R4f3 {[%clk 0:00:13]} 28... Ra3+ {[%clk 0:01:18.5]} 29. Kc4 {[%clk
0:00:12.7]} 29... Bxg3 {[%clk 0:01:17.4]} 30. Rxa3 {[%clk 0:00:11.6]} 30... Be5
{[%clk 0:01:14.3]} 31. Rb3 {[%clk 0:00:11.2]} 31... b6 {[%clk 0:01:12.9]} 32. h5
{[%clk 0:00:10.8]} 32... f6 {[%clk 0:01:10.4]} 33. Rbf3 {[%clk 0:00:09.7]} 33...
Kf7 {[%clk 0:01:09.8]} 34. Rf5 {[%clk 0:00:09.2]} 34... Rg8 {[%clk 0:01:08.1]}
35. Kd5 {[%clk 0:00:07.6]} 35... Rg4 {[%clk 0:01:05.6]} 36. Kc6 {[%clk
0:00:06.7]} 36... Rc4+ {[%clk 0:01:02.4]} 37. Kd5 {[%clk 0:00:05.5]} 37... Rc2
{[%clk 0:01:01.8]} 38. R1f2 {[%clk 0:00:04.9]} 38... Rc5+ {[%clk 0:00:59.7]} 39.
Ke4 {[%clk 0:00:04.3]} 39... d5+ {[%clk 0:00:58.9]} 40. Kd3 {[%clk 0:00:04.3]}
40... Ke6 {[%clk 0:00:59.1]} 41. R5f3 {[%clk 0:00:03.6]} 41... Rc3+ {[%clk
0:00:56.7]} 42. Kd2 {[%clk 0:00:04.1]} 42... Rc4 {[%clk 0:00:56.7]} 43. Kd3
{[%clk 0:00:04.1]} 43... b5 {[%clk 0:00:56.1]} 44. Kd2 {[%clk 0:00:04]} 44... b4
{[%clk 0:00:55.9]} 45. Rb3 {[%clk 0:00:03.8]} 45... c5 {[%clk 0:00:55.6]} 46.
Ke1 {[%clk 0:00:03.3]} 46... Re4+ {[%clk 0:00:52.3]} 47. Kf1 {[%clk 0:00:03.2]}
47... Bc3 {[%clk 0:00:50.7]} 48. Re2 {[%clk 0:00:02.6]} 48... Rxe2 {[%clk
0:00:49.3]} 49. Kxe2 {[%clk 0:00:03.5]} 49... c4 {[%clk 0:00:49.4]} 50. Rb1
{[%clk 0:00:02.9]} 50... Ke5 {[%clk 0:00:49.2]} 51. Kf3 {[%clk 0:00:03.2]} 51...
b3 {[%clk 0:00:46.9]} 52. Rd1 {[%clk 0:00:03.7]} 52... Bd4 {[%clk 0:00:46]} 53.
g4 {[%clk 0:00:04.6]} 53... c3 {[%clk 0:00:43.9]} 54. Re1+ {[%clk 0:00:04.8]}
54... Kd6 {[%clk 0:00:42.5]} 55. Rd1 {[%clk 0:00:04.5]} 55... Be5 {[%clk
0:00:42.1]} 56. Rd3 {[%clk 0:00:04.1]} 56... b2 {[%clk 0:00:41.2]} 57. Rd1
{[%clk 0:00:03.9]} 57... c2 {[%clk 0:00:40.3]} 58. Re1 {[%clk 0:00:02.1]} 58...
b1=Q {[%clk 0:00:39]} 59. Rxb1 {[%clk 0:00:02.1]} 59... cxb1=Q {[%clk
0:00:37.9]} 60. g5 {[%clk 0:00:03]} 60... Qb3+ {[%clk 0:00:36.6]} 61. Kg4 {[%clk
0:00:02.1]} 61... Qg3+ {[%clk 0:00:35.7]} 0-1

[Event "Betsys MČR v online bleskovém šachu 2021"]
[Site "Chess.com"]
[Date "2021.04.17"]
[Round "12"]
[White "JohnnyDuck64"]
[Black "Filipdol"]
[Result "0-1"]
[WhiteElo "2060"]
[BlackElo "1909"]
[TimeControl "180+1"]
[EndTime "11:01:46 PDT"]
[Termination "Uživatel Filipdol zvítězil na čas"]

1. e4 {[%clk 0:03:00.9]} 1... c5 {[%clk 0:02:58.6]} 2. Nf3 {[%clk 0:03:00.9]}
2... a6 {[%clk 0:02:57.4]} 3. d4 {[%clk 0:03:01.3]} 3... cxd4 {[%clk 0:02:58.2]}
4. a4 {[%clk 0:02:59.6]} 4... Nf6 {[%clk 0:02:57.6]} 5. Nxd4 {[%clk 0:02:52.7]}
5... Nxe4 {[%clk 0:02:54.5]} 6. Bd3 {[%clk 0:02:52.4]} 6... Nf6 {[%clk
0:02:53.8]} 7. O-O {[%clk 0:02:52.1]} 7... e6 {[%clk 0:02:52]} 8. Re1 {[%clk
0:02:52.3]} 8... Be7 {[%clk 0:02:51.9]} 9. Nc3 {[%clk 0:02:50]} 9... Nc6 {[%clk
0:02:50.1]} 10. Nxc6 {[%clk 0:02:43.3]} 10... bxc6 {[%clk 0:02:51]} 11. a5
{[%clk 0:02:42]} 11... d5 {[%clk 0:02:43.2]} 12. Bd2 {[%clk 0:02:09.9]} 12...
O-O {[%clk 0:02:36.6]} 13. Na4 {[%clk 0:02:09.4]} 13... Qc7 {[%clk 0:02:28.1]}
14. Nb6 {[%clk 0:02:08.5]} 14... Rb8 {[%clk 0:02:21.4]} 15. b3 {[%clk
0:02:00.6]} 15... Bc5 {[%clk 0:02:03.8]} 16. Nxc8 {[%clk 0:01:53.1]} 16... Qxc8
{[%clk 0:02:01.3]} 17. Bf4 {[%clk 0:01:49.8]} 17... Ra8 {[%clk 0:01:54.3]} 18.
Be5 {[%clk 0:01:45]} 18... Be7 {[%clk 0:01:47.4]} 19. Qf3 {[%clk 0:01:31.7]}
19... Nd7 {[%clk 0:01:24.7]} 20. Bxh7+ {[%clk 0:00:43.2]} 20... Kxh7 {[%clk
0:01:18.7]} 21. Qh5+ {[%clk 0:00:40.8]} 21... Kg8 {[%clk 0:01:17.3]} 22. Bxg7
{[%clk 0:00:40.7]} 22... Kxg7 {[%clk 0:01:08.2]} 23. Qg4+ {[%clk 0:00:40.7]}
23... Kh6 {[%clk 0:00:25.1]} 24. Re3 {[%clk 0:00:38.4]} 24... Bg5 {[%clk
0:00:22.1]} 25. f4 {[%clk 0:00:33.6]} 25... f6 {[%clk 0:00:17.8]} 26. Rh3+
{[%clk 0:00:31.2]} 26... Kg6 {[%clk 0:00:17.6]} 27. Qh5+ {[%clk 0:00:30.5]}
27... Kf5 {[%clk 0:00:16.3]} 28. fxg5 {[%clk 0:00:28.4]} 28... e5 {[%clk
0:00:11]} 29. g6+ {[%clk 0:00:17.1]} 29... Ke6 {[%clk 0:00:10.4]} 30. g7 {[%clk
0:00:16.2]} 30... Rf7 {[%clk 0:00:10.2]} 31. Qg4+ {[%clk 0:00:13.8]} 31... Ke7
{[%clk 0:00:10.2]} 32. Rh8 {[%clk 0:00:12.5]} 32... Qxh8 {[%clk 0:00:09.3]} 33.
gxh8=Q {[%clk 0:00:12.3]} 33... Rxh8 {[%clk 0:00:10]} 34. Rf1 {[%clk 0:00:11.4]}
34... Rhf8 {[%clk 0:00:10.6]} 35. Qf5 {[%clk 0:00:11.2]} 35... e4 {[%clk
0:00:10.7]} 36. h4 {[%clk 0:00:11.1]} 36... Ne5 {[%clk 0:00:10.9]} 37. h5 {[%clk
0:00:10.2]} 37... Rg7 {[%clk 0:00:10.4]} 38. h6 {[%clk 0:00:09.9]} 38... Rg5
{[%clk 0:00:10.6]} 39. Qh3 {[%clk 0:00:07]} 39... Rfg8 {[%clk 0:00:10.6]} 40.
Rf2 {[%clk 0:00:05.9]} 40... Nf3+ {[%clk 0:00:09.8]} 41. Rxf3 {[%clk 0:00:06]}
41... exf3 {[%clk 0:00:09.6]} 42. Qxf3 {[%clk 0:00:05]} 42... Rxg2+ {[%clk
0:00:09.5]} 43. Qxg2 {[%clk 0:00:03.9]} 43... Rxg2+ {[%clk 0:00:10.2]} 44. Kxg2
{[%clk 0:00:04.6]} 44... Kf7 {[%clk 0:00:10.4]} 45. Kf3 {[%clk 0:00:04.5]} 45...
Kg6 {[%clk 0:00:10.6]} 46. Kf4 {[%clk 0:00:04.6]} 46... Kxh6 {[%clk 0:00:10.9]}
47. Kf5 {[%clk 0:00:04.5]} 47... Kg7 {[%clk 0:00:11.5]} 48. b4 {[%clk
0:00:04.6]} 48... Kf7 {[%clk 0:00:11.7]} 49. c3 {[%clk 0:00:04.5]} 49... Ke7
{[%clk 0:00:11.6]} 0-1

[Event "Betsys MČR v online bleskovém šachu 2021"]
[Site "Chess.com"]
[Date "2021.04.17"]
[Round "12"]
[White "rolkento"]
[Black "Joanna23W"]
[Result "0-1"]
[WhiteElo "2257"]
[BlackElo "2658"]
[TimeControl "180+1"]
[EndTime "11:01:47 PDT"]
[Termination "Uživatel Joanna23W zvítězil na čas"]

1. e4 {[%clk 0:03:00.9]} 1... c5 {[%clk 0:02:59.6]} 2. c3 {[%clk 0:03:00.6]}
2... Nf6 {[%clk 0:02:56.2]} 3. Qc2 {[%clk 0:03:00.3]} 3... Nc6 {[%clk
0:02:55.1]} 4. f4 {[%clk 0:03:00.2]} 4... e5 {[%clk 0:02:53]} 5. Nf3 {[%clk
0:02:59.9]} 5... d6 {[%clk 0:02:52.3]} 6. Bb5 {[%clk 0:02:59.4]} 6... exf4
{[%clk 0:02:46.1]} 7. d4 {[%clk 0:02:57.7]} 7... Bd7 {[%clk 0:02:41]} 8. O-O
{[%clk 0:02:44.6]} 8... Be7 {[%clk 0:02:34.2]} 9. Bxf4 {[%clk 0:02:41]} 9... O-O
{[%clk 0:02:30.5]} 10. Bxc6 {[%clk 0:02:31.5]} 10... Bxc6 {[%clk 0:02:27]} 11.
d5 {[%clk 0:02:31.2]} 11... Bd7 {[%clk 0:02:27]} 12. c4 {[%clk 0:02:24.7]} 12...
Bg4 {[%clk 0:02:26.8]} 13. Nc3 {[%clk 0:02:22.3]} 13... a6 {[%clk 0:02:22.5]}
14. e5 {[%clk 0:02:09]} 14... dxe5 {[%clk 0:02:20.9]} 15. Nxe5 {[%clk
0:02:05.6]} 15... Bh5 {[%clk 0:02:09.2]} 16. Rae1 {[%clk 0:01:37.9]} 16... Bd6
{[%clk 0:02:08.3]} 17. Bg5 {[%clk 0:01:18.4]} 17... Bg6 {[%clk 0:01:55.2]} 18.
Nxg6 {[%clk 0:01:12.4]} 18... hxg6 {[%clk 0:01:53.5]} 19. Ne4 {[%clk 0:01:00.4]}
19... Be5 {[%clk 0:01:49.1]} 20. b3 {[%clk 0:00:43.1]} 20... Bd4+ {[%clk
0:01:31.9]} 21. Kh1 {[%clk 0:00:42.5]} 21... Re8 {[%clk 0:01:27.3]} 22. Nxf6+
{[%clk 0:00:36.8]} 22... gxf6 {[%clk 0:01:23.9]} 23. Bh4 {[%clk 0:00:32.6]}
23... Qd6 {[%clk 0:01:19.8]} 24. Bf2 {[%clk 0:00:28.8]} 24... Be5 {[%clk
0:01:13.3]} 25. h3 {[%clk 0:00:28.6]} 25... Rac8 {[%clk 0:01:08.9]} 26. Re2
{[%clk 0:00:27.4]} 26... b5 {[%clk 0:01:07.7]} 27. Rfe1 {[%clk 0:00:27.4]} 27...
bxc4 {[%clk 0:01:05.8]} 28. bxc4 {[%clk 0:00:28]} 28... Rb8 {[%clk 0:01:01.3]}
29. Qa4 {[%clk 0:00:27.6]} 29... Rec8 {[%clk 0:00:52.9]} 30. Qa5 {[%clk
0:00:23.2]} 30... Rb4 {[%clk 0:00:47.8]} 31. Re4 {[%clk 0:00:19.4]} 31... Rb2
{[%clk 0:00:43]} 32. R4e2 {[%clk 0:00:18.4]} 32... Rxe2 {[%clk 0:00:36.4]} 33.
Rxe2 {[%clk 0:00:18.4]} 33... Rb8 {[%clk 0:00:34]} 34. Re1 {[%clk 0:00:10.9]}
34... Bd4 {[%clk 0:00:20.3]} 35. Bxd4 {[%clk 0:00:09.6]} 35... cxd4 {[%clk
0:00:20.7]} 36. Qd2 {[%clk 0:00:08.3]} 36... Qc5 {[%clk 0:00:21]} 37. Rd1 {[%clk
0:00:08.1]} 37... Qxc4 {[%clk 0:00:21]} 38. Qxd4 {[%clk 0:00:08.2]} 38... Qxa2
{[%clk 0:00:21]} 39. Qxf6 {[%clk 0:00:06.3]} 39... Qb3 {[%clk 0:00:20.2]} 40.
Qd4 {[%clk 0:00:04.4]} 40... Rd8 {[%clk 0:00:20.2]} 41. d6 {[%clk 0:00:03.9]}
41... Rd7 {[%clk 0:00:20.6]} 42. Re1 {[%clk 0:00:02.9]} 42... Qb8 {[%clk
0:00:18.4]} 43. Rd1 {[%clk 0:00:02.5]} 43... Qd8 {[%clk 0:00:17.7]} 44. Qd3
{[%clk 0:00:01.5]} 44... a5 {[%clk 0:00:18]} 45. Qd5 {[%clk 0:00:01.6]} 45... a4
{[%clk 0:00:18.5]} 46. Qd3 {[%clk 0:00:01.8]} 46... a3 {[%clk 0:00:18.9]} 47.
Qxa3 {[%clk 0:00:01.7]} 47... Rb7 {[%clk 0:00:17.9]} 48. Qd3 {[%clk 0:00:02.2]}
48... Qd7 {[%clk 0:00:18.3]} 49. Qd4 {[%clk 0:00:02.3]} 49... Rb5 {[%clk
0:00:18]} 50. Qe3 {[%clk 0:00:02.1]} 50... Rf5 {[%clk 0:00:16.2]} 51. Qe7 {[%clk
0:00:02.2]} 51... Qa4 {[%clk 0:00:15.2]} 52. Re1 {[%clk 0:00:01.8]} 52... Rd5
{[%clk 0:00:13.3]} 0-1

[Event "Betsys MČR v online bleskovém šachu 2021"]
[Site "Chess.com"]
[Date "2021.04.17"]
[Round "12"]
[White "mendryxchess"]
[Black "Dasty78"]
[Result "1-0"]
[WhiteElo "1814"]
[BlackElo "1991"]
[TimeControl "180+1"]
[EndTime "11:01:47 PDT"]
[Termination "Uživatel mendryxchess zvítězil na čas"]

1. e4 {[%clk 0:03:00.9]} 1... e6 {[%clk 0:02:59.8]} 2. d4 {[%clk 0:03:00.7]}
2... d5 {[%clk 0:02:59.4]} 3. Nd2 {[%clk 0:03:01.2]} 3... a6 {[%clk 0:02:58.7]}
4. Bd3 {[%clk 0:02:58.4]} 4... c5 {[%clk 0:02:58.3]} 5. c3 {[%clk 0:02:56.2]}
5... Nc6 {[%clk 0:02:56]} 6. Ne2 {[%clk 0:02:48.4]} 6... Nf6 {[%clk 0:02:35.1]}
7. e5 {[%clk 0:02:48]} 7... Nd7 {[%clk 0:02:34.8]} 8. Nf3 {[%clk 0:02:46]} 8...
f6 {[%clk 0:02:34.8]} 9. Nf4 {[%clk 0:02:41.4]} 9... fxe5 {[%clk 0:02:01.6]} 10.
Nxe6 {[%clk 0:02:40.4]} 10... Qb6 {[%clk 0:01:53.9]} 11. Nxe5 {[%clk 0:02:36]}
11... Ncxe5 {[%clk 0:01:50.4]} 12. dxe5 {[%clk 0:02:32.3]} 12... Qxe6 {[%clk
0:01:45.9]} 13. O-O {[%clk 0:02:12]} 13... Be7 {[%clk 0:01:45.6]} 14. Bf4 {[%clk
0:02:01.1]} 14... O-O {[%clk 0:01:44.5]} 15. Bg3 {[%clk 0:02:00.6]} 15... c4
{[%clk 0:01:34.8]} 16. Bc2 {[%clk 0:01:58.2]} 16... Nc5 {[%clk 0:01:31.6]} 17.
Qh5 {[%clk 0:01:46.7]} 17... g6 {[%clk 0:01:24.4]} 18. Qh6 {[%clk 0:01:43.9]}
18... Qg4 {[%clk 0:01:18.2]} 19. h3 {[%clk 0:01:36.4]} 19... Qg5 {[%clk
0:01:16.5]} 20. Qxg5 {[%clk 0:01:32.6]} 20... Bxg5 {[%clk 0:01:16.2]} 21. Rfe1
{[%clk 0:01:32.7]} 21... Bf5 {[%clk 0:01:09.4]} 22. Bxf5 {[%clk 0:01:29.2]}
22... Rxf5 {[%clk 0:01:08.9]} 23. e6 {[%clk 0:01:29.9]} 23... Re8 {[%clk
0:01:07.4]} 24. Bd6 {[%clk 0:01:25.1]} 24... Nd3 {[%clk 0:01:03.7]} 25. Re2
{[%clk 0:01:25.5]} 25... Bf4 {[%clk 0:00:55]} 26. Ba3 {[%clk 0:01:23.3]} 26...
Bc7 {[%clk 0:00:47.9]} 27. e7 {[%clk 0:01:20.2]} 27... Bb6 {[%clk 0:00:47]} 28.
Rf1 {[%clk 0:01:15.2]} 28... Kf7 {[%clk 0:00:45.1]} 29. b3 {[%clk 0:01:07.5]}
29... Nf4 {[%clk 0:00:32.3]} 30. Ree1 {[%clk 0:01:01.6]} 30... Nd3 {[%clk
0:00:23.8]} 31. Re2 {[%clk 0:01:01.2]} 31... Bc5 {[%clk 0:00:22.6]} 32. Bxc5
{[%clk 0:00:54.3]} 32... Nxc5 {[%clk 0:00:22.4]} 33. bxc4 {[%clk 0:00:50.4]}
33... dxc4 {[%clk 0:00:22.3]} 34. g4 {[%clk 0:00:49.4]} 34... Rf3 {[%clk
0:00:20.4]} 35. Re5 {[%clk 0:00:49.7]} 35... b6 {[%clk 0:00:18.8]} 36. Kg2
{[%clk 0:00:41.6]} 36... Rxc3 {[%clk 0:00:18.4]} 37. f4 {[%clk 0:00:42.2]} 37...
Rc2+ {[%clk 0:00:17.9]} 38. Kg3 {[%clk 0:00:42.9]} 38... Nd3 {[%clk 0:00:15.9]}
39. Rd5 {[%clk 0:00:39.3]} 39... Rxe7 {[%clk 0:00:15.2]} 40. f5 {[%clk
0:00:38.9]} 40... Re3+ {[%clk 0:00:14.3]} 41. Kh4 {[%clk 0:00:38.1]} 41... Ne5
{[%clk 0:00:09.9]} 42. fxg6+ {[%clk 0:00:36.3]} 42... Kxg6 {[%clk 0:00:10.1]}
43. Rd6+ {[%clk 0:00:35.2]} 43... Kg7 {[%clk 0:00:09.2]} 44. Rf5 {[%clk
0:00:28.5]} 44... Rcc3 {[%clk 0:00:08.3]} 45. Rg5+ {[%clk 0:00:27]} 45... Kf7
{[%clk 0:00:08.3]} 46. Rf5+ {[%clk 0:00:26.1]} 46... Ke7 {[%clk 0:00:08.3]} 47.
Rd4 {[%clk 0:00:21.3]} 47... Rxh3+ {[%clk 0:00:07.7]} 48. Kg5 {[%clk 0:00:21.9]}
48... Nf7+ {[%clk 0:00:06.8]} 49. Kf4 {[%clk 0:00:20.9]} 49... Rhf3+ {[%clk
0:00:04]} 50. Ke4 {[%clk 0:00:19.7]} 50... Nd6+ {[%clk 0:00:02.8]} 51. Ke5
{[%clk 0:00:18.6]} 51... Nxf5 {[%clk 0:00:02.8]} 52. gxf5 {[%clk 0:00:19.5]}
52... Rce3+ {[%clk 0:00:02.8]} 53. Kd5 {[%clk 0:00:20.3]} 53... b5 {[%clk
0:00:03]} 54. Kc5 {[%clk 0:00:20.3]} 54... Rxf5+ {[%clk 0:00:02.4]} 55. Kb4
{[%clk 0:00:20.5]} 1-0

[Event "Betsys MČR v online bleskovém šachu 2021"]
[Site "Chess.com"]
[Date "2021.04.17"]
[Round "12"]
[White "MartinCerveny"]
[Black "BRNOTEACHER"]
[Result "1/2-1/2"]
[WhiteElo "2664"]
[BlackElo "2389"]
[TimeControl "180+1"]
[EndTime "11:01:49 PDT"]
[Termination "Remíza opakováním pozice"]

1. d4 {[%clk 0:03:00.9]} 1... Nf6 {[%clk 0:03:00.2]} 2. Nf3 {[%clk 0:03:01]}
2... g6 {[%clk 0:02:59.6]} 3. g3 {[%clk 0:02:59.8]} 3... Bg7 {[%clk 0:02:58.8]}
4. Bg2 {[%clk 0:03:00.2]} 4... d5 {[%clk 0:02:58.2]} 5. O-O {[%clk 0:02:59.8]}
5... O-O {[%clk 0:02:57.1]} 6. c4 {[%clk 0:02:59.9]} 6... c6 {[%clk 0:02:56.6]}
7. Bf4 {[%clk 0:02:58.4]} 7... dxc4 {[%clk 0:02:49.8]} 8. a4 {[%clk 0:02:58.3]}
8... Nbd7 {[%clk 0:02:42.7]} 9. Ne5 {[%clk 0:02:32.7]} 9... Nxe5 {[%clk
0:02:39.6]} 10. Bxe5 {[%clk 0:02:32.5]} 10... Be6 {[%clk 0:02:02]} 11. Nd2
{[%clk 0:02:22.7]} 11... a5 {[%clk 0:01:24.3]} 12. Qc2 {[%clk 0:02:18.8]} 12...
Ng4 {[%clk 0:01:17]} 13. Bxg7 {[%clk 0:02:17.4]} 13... Kxg7 {[%clk 0:01:16.4]}
14. e3 {[%clk 0:02:13]} 14... Nf6 {[%clk 0:00:58.6]} 15. Nxc4 {[%clk 0:01:59.8]}
15... Bxc4 {[%clk 0:00:57.1]} 16. Qxc4 {[%clk 0:01:59.3]} 16... Ra6 {[%clk
0:00:57.2]} 17. b4 {[%clk 0:01:58.6]} 17... axb4 {[%clk 0:00:48.8]} 18. Qxb4
{[%clk 0:01:59.5]} 18... Nd5 {[%clk 0:00:48.7]} 19. Qb3 {[%clk 0:01:51.1]} 19...
Rb6 {[%clk 0:00:45.2]} 20. Qc2 {[%clk 0:01:48]} 20... Qa8 {[%clk 0:00:36.7]} 21.
Rfb1 {[%clk 0:01:33.4]} 21... Rxb1+ {[%clk 0:00:33.9]} 22. Rxb1 {[%clk
0:01:34.3]} 22... e6 {[%clk 0:00:31.4]} 23. h4 {[%clk 0:01:33.5]} 23... h5
{[%clk 0:00:26.7]} 24. e4 {[%clk 0:01:27.9]} 24... Nf6 {[%clk 0:00:25.4]} 25. e5
{[%clk 0:01:18.1]} 25... Nd5 {[%clk 0:00:25.1]} 26. Bxd5 {[%clk 0:01:18.2]}
26... cxd5 {[%clk 0:00:24.9]} 27. Rb5 {[%clk 0:01:06.8]} 27... Rc8 {[%clk
0:00:22.8]} 28. Qb3 {[%clk 0:01:03.6]} 28... Rc7 {[%clk 0:00:22.9]} 29. Kg2
{[%clk 0:01:01.5]} 29... Rc4 {[%clk 0:00:21.8]} 30. Rxb7 {[%clk 0:00:57.8]}
30... Qxa4 {[%clk 0:00:20.1]} 31. Qf3 {[%clk 0:00:57.2]} 31... Qe8 {[%clk
0:00:18.4]} 32. Qe3 {[%clk 0:00:55.6]} 32... Qc8 {[%clk 0:00:16.7]} 33. Ra7
{[%clk 0:00:53.2]} 33... Rc7 {[%clk 0:00:16.1]} 34. Ra3 {[%clk 0:00:50.5]} 34...
Qd8 {[%clk 0:00:15.4]} 35. Qf4 {[%clk 0:00:49.8]} 35... Qe7 {[%clk 0:00:15.5]}
36. Rf3 {[%clk 0:00:47.7]} 36... Rc4 {[%clk 0:00:14.8]} 37. Rb3 {[%clk
0:00:42.4]} 37... Rc8 {[%clk 0:00:11.8]} 38. Rf3 {[%clk 0:00:37.1]} 38... Rc7
{[%clk 0:00:11.1]} 39. Kh3 {[%clk 0:00:35.1]} 39... Rc8 {[%clk 0:00:11.1]} 40.
g4 {[%clk 0:00:34.7]} 40... hxg4+ {[%clk 0:00:10.8]} 41. Qxg4 {[%clk 0:00:35.6]}
41... Rh8 {[%clk 0:00:10.7]} 42. Kg3 {[%clk 0:00:35.7]} 42... Rh5 {[%clk
0:00:10]} 43. Rf6 {[%clk 0:00:34]} 43... Qf8 {[%clk 0:00:06.8]} 44. Qf4 {[%clk
0:00:32.6]} 44... Qe7 {[%clk 0:00:05.6]} 45. Qg4 {[%clk 0:00:30.7]} 45... Qe8
{[%clk 0:00:04.6]} 46. Rf4 {[%clk 0:00:28.3]} 46... Qe7 {[%clk 0:00:04.9]} 47.
Qf3 {[%clk 0:00:27]} 47... Rh6 {[%clk 0:00:04.7]} 48. Rg4 {[%clk 0:00:25.4]}
48... Rh5 {[%clk 0:00:04.9]} 49. Qe3 {[%clk 0:00:23.6]} 49... Kh7 {[%clk
0:00:04.1]} 50. Rg5 {[%clk 0:00:20.2]} 50... Rxg5+ {[%clk 0:00:03.6]} 51. hxg5
{[%clk 0:00:20.3]} 51... Kg7 {[%clk 0:00:03.6]} 52. Qf4 {[%clk 0:00:20.5]} 52...
Qa3+ {[%clk 0:00:03.5]} 53. f3 {[%clk 0:00:19.8]} 53... Qb2 {[%clk 0:00:03.9]}
54. Qf6+ {[%clk 0:00:19.4]} 54... Kg8 {[%clk 0:00:03.5]} 55. Qd8+ {[%clk
0:00:19.1]} 55... Kg7 {[%clk 0:00:04.1]} 56. Qf6+ {[%clk 0:00:18.8]} 56... Kg8
{[%clk 0:00:04.8]} 57. Qd8+ {[%clk 0:00:18]} 57... Kg7 {[%clk 0:00:05.7]} 58.
Qf6+ {[%clk 0:00:18]} 1/2-1/2

[Event "Betsys MČR v online bleskovém šachu 2021"]
[Site "Chess.com"]
[Date "2021.04.17"]
[Round "12"]
[White "sachmaty8"]
[Black "Krtecci"]
[Result "1-0"]
[WhiteElo "1863"]
[BlackElo "2050"]
[TimeControl "180+1"]
[EndTime "11:01:49 PDT"]
[Termination "Uživatel sachmaty8 zvítězil na čas"]

1. e4 {[%clk 0:02:59.4]} 1... e5 {[%clk 0:02:59.8]} 2. Nf3 {[%clk 0:02:59.1]}
2... Nf6 {[%clk 0:03:00.1]} 3. d4 {[%clk 0:02:58.2]} 3... Nxe4 {[%clk
0:02:59.1]} 4. Bd3 {[%clk 0:02:57.4]} 4... d5 {[%clk 0:02:59.5]} 5. Nxe5 {[%clk
0:02:56.8]} 5... Nd7 {[%clk 0:02:59.4]} 6. O-O {[%clk 0:02:55.8]} 6... Nxe5
{[%clk 0:02:58.8]} 7. dxe5 {[%clk 0:02:55.6]} 7... Be7 {[%clk 0:02:51]} 8. Nd2
{[%clk 0:02:55.6]} 8... Nxd2 {[%clk 0:02:43.9]} 9. Bxd2 {[%clk 0:02:55]} 9...
O-O {[%clk 0:02:42.7]} 10. f4 {[%clk 0:02:54.4]} 10... c5 {[%clk 0:02:42.6]} 11.
c3 {[%clk 0:02:51.3]} 11... f6 {[%clk 0:02:36.5]} 12. Qh5 {[%clk 0:02:49.1]}
12... f5 {[%clk 0:02:32.2]} 13. Rf3 {[%clk 0:02:40.4]} 13... g6 {[%clk
0:02:28.7]} 14. Qh6 {[%clk 0:02:38.6]} 14... Rf7 {[%clk 0:02:16.3]} 15. Re1
{[%clk 0:02:35.7]} 15... Be6 {[%clk 0:02:15.6]} 16. Qh3 {[%clk 0:02:17.4]} 16...
d4 {[%clk 0:02:10.3]} 17. c4 {[%clk 0:02:12.6]} 17... Rc8 {[%clk 0:01:52.3]} 18.
b3 {[%clk 0:02:10.1]} 18... Bf8 {[%clk 0:01:43.1]} 19. Rff1 {[%clk 0:02:08.9]}
19... Qd7 {[%clk 0:01:34.6]} 20. Be2 {[%clk 0:02:07.7]} 20... a6 {[%clk
0:01:32.7]} 21. Qd3 {[%clk 0:02:04.4]} 21... Rb8 {[%clk 0:01:24]} 22. a4 {[%clk
0:01:39.3]} 22... b6 {[%clk 0:01:20.8]} 23. Bf3 {[%clk 0:01:37.7]} 23... Bh6
{[%clk 0:01:16.9]} 24. g3 {[%clk 0:01:37.4]} 24... Bf8 {[%clk 0:01:14]} 25. Bg2
{[%clk 0:01:36.7]} 25... b5 {[%clk 0:01:09.6]} 26. axb5 {[%clk 0:01:25.6]} 26...
axb5 {[%clk 0:01:10.5]} 27. Ra1 {[%clk 0:01:24.5]} 27... bxc4 {[%clk 0:00:58.5]}
28. bxc4 {[%clk 0:01:25.4]} 28... Re7 {[%clk 0:00:45]} 29. Ra6 {[%clk
0:01:22.7]} 29... Qe8 {[%clk 0:00:41.9]} 30. Rfa1 {[%clk 0:01:05.9]} 30... Kg7
{[%clk 0:00:41.6]} 31. Bd5 {[%clk 0:00:51.6]} 31... Qf7 {[%clk 0:00:30.3]} 32.
Qf3 {[%clk 0:00:37.8]} 32... Rb2 {[%clk 0:00:28]} 33. Be1 {[%clk 0:00:34.8]}
33... Rc2 {[%clk 0:00:14.4]} 34. Qd3 {[%clk 0:00:28.1]} 34... Rb2 {[%clk
0:00:12.5]} 35. Qf3 {[%clk 0:00:24.6]} 35... Bxd5 {[%clk 0:00:12.3]} 36. cxd5
{[%clk 0:00:23.5]} 36... c4 {[%clk 0:00:12.3]} 37. d6 {[%clk 0:00:19]} 37...
Reb7 {[%clk 0:00:11.3]} 38. Rc6 {[%clk 0:00:13.1]} 38... d3 {[%clk 0:00:10.8]}
39. Bc3 {[%clk 0:00:11.4]} 39... Rb1+ {[%clk 0:00:10.1]} 40. Rxb1 {[%clk
0:00:10.9]} 40... Rxb1+ {[%clk 0:00:11]} 41. Kg2 {[%clk 0:00:11.3]} 41... Rc1
{[%clk 0:00:08.7]} 42. e6+ {[%clk 0:00:10]} 42... Rxc3 {[%clk 0:00:07.3]} 43.
exf7 {[%clk 0:00:10.1]} 43... Rc2+ {[%clk 0:00:06.1]} 44. Kh3 {[%clk 0:00:09.8]}
44... d2 {[%clk 0:00:06.6]} 45. Qd5 {[%clk 0:00:09]} 45... c3 {[%clk 0:00:05.2]}
46. d7 {[%clk 0:00:08.9]} 46... Rc1 {[%clk 0:00:04.4]} 47. Rxc3 {[%clk
0:00:05.9]} 47... d1=Q {[%clk 0:00:03.9]} 48. Qe5+ {[%clk 0:00:05.6]} 48... Kh6
{[%clk 0:00:01.8]} 49. d8=Q {[%clk 0:00:05.1]} 49... Qxd8 {[%clk 0:00:01.2]} 50.
Rxc1 {[%clk 0:00:04.9]} 1-0